bitfinex-derivatives/quotes_BTCF0:USTF0_20251108
["timestamp","ask_amount","ask_price","bid_price","bid_amount"]
[1762590988082,0.06639,102630.0,102620.0,0.56214058]
[1762590988580,0.06639,102630.0,102620.0,0.4594467]
[1762590989278,0.06639,102630.0,102620.0,0.56214058]
[1762590990174,0.01698,102630.0,102620.0,0.56214058]
[1762590991080,0.07334,102630.0,102620.0,0.56214058]
[1762590991283,0.01698,102630.0,102620.0,0.56214058]
[1762590991780,0.04502,102630.0,102620.0,0.56214058]
[1762590992772,0.01698,102630.0,102620.0,0.56214058]
[1762590993175,0.01698,102630.0,102620.0,0.56213168]
[1762590993384,0.04502,102630.0,102620.0,0.58890729]
[1762590993573,0.01698,102630.0,102620.0,0.58890729]
[1762590994481,0.01698,102630.0,102620.0,0.73850729]
[1762590994870,0.04502,102630.0,102620.0,0.73850729]
[1762590995074,0.01698,102630.0,102620.0,0.73850729]
[1762590995271,0.04161,102640.0,102630.0,0.0974909]
[1762590995475,0.04161,102640.0,102630.0,0.58776039]
[1762590995676,0.06993,102640.0,102630.0,0.58776039]
[1762590996584,0.07093,102640.0,102630.0,0.58776039]
[1762590998380,0.06993,102640.0,102630.0,0.58776039]
[1762590998579,0.06993,102640.0,102630.0,0.58876039]
[1762591000189,0.06993,102640.0,102630.0,0.73836039]
[1762591001581,0.06993,102640.0,102630.0,0.71158478]
[1762591001889,0.06993,102640.0,102630.0,0.73837217]
[1762591002590,0.06993,102640.0,102630.0,0.71158478]
[1762591002980,0.06993,102640.0,102630.0,0.61409388]
[1762591003185,0.06993,102640.0,102630.0,0.6088909]
[1762591003891,0.06993,102640.0,102630.0,0.71158478]
[1762591004293,0.06993,102640.0,102630.0,0.6088909]
[1762591005392,0.06993,102640.0,102630.0,0.71158478]
[1762591006188,0.06993,102640.0,102630.0,0.6088909]
[1762591006994,0.06993,102640.0,102630.0,0.71158478]
[1762591007297,0.1400114,102640.0,102630.0,0.71158478]
[1762591007793,0.1400114,102640.0,102630.0,0.61409388]
[1762591008294,0.1400114,102640.0,102630.0,0.5114]
[1762591008594,0.06993,102640.0,102630.0,0.5114]
[1762591008794,0.14003951,102640.0,102630.0,0.5114]
[1762591009800,0.14003951,102640.0,102630.0,0.6088909]
[1762591012690,0.06993,102640.0,102630.0,0.6088909]
[1762591018997,0.06993,102640.0,102630.0,0.5114]
[1762591019586,0.06993,102640.0,102630.0,0.6088909]
[1762591019794,0.06993,102640.0,102630.0,0.73841877]
[1762591021493,0.06993,102640.0,102630.0,0.63572489]
[1762591021693,0.06993,102640.0,102630.0,0.73841877]
[1762591023097,0.06993,102640.0,102630.0,0.64092787]
[1762591023291,0.06993,102640.0,102630.0,0.53823399]
[1762591023603,0.06993,102640.0,102630.0,0.63572489]
[1762591023799,0.06993,102640.0,102630.0,0.53823399]
[1762591023997,0.06993,102640.0,102630.0,0.6088909]
[1762591024401,0.06993,102640.0,102630.0,0.5114]
[1762591025099,0.06993,102640.0,102630.0,0.6088909]
[1762591026407,0.14003951,102640.0,102630.0,0.6088909]
[1762591026605,0.06993,102640.0,102630.0,0.71158478]
[1762591027601,0.01357,102640.0,102630.0,0.71158478]
[1762591028811,0.01357,102640.0,102630.0,0.81427866]
[1762591029806,0.01357,102640.0,102630.0,0.71158478]
[1762591030002,0.01357,102640.0,102630.0,0.81427866]
[1762591030204,0.06386,102650.0,102630.0,0.84112561]
[1762591030508,0.06386,102650.0,102640.0,0.50593808]
[1762591031208,0.1613319,102650.0,102640.0,0.50593808]
[1762591031797,0.1623319,102650.0,102640.0,0.50593808]
[1762591034910,0.1623319,102650.0,102640.0,0.40845668]
[1762591035109,0.1623319,102650.0,102640.0,0.50593808]
[1762591035504,0.1623319,102650.0,102640.0,0.65553808]
[1762591036910,0.1623319,102650.0,102640.0,0.4553628]
[1762591037209,0.1613319,102650.0,102640.0,0.4553628]
[1762591037409,0.1613319,102650.0,102640.0,0.4563628]
[1762591038206,0.1613319,102650.0,102640.0,0.5538442]
[1762591038407,0.1613319,102650.0,102640.0,0.4563628]
[1762591041412,0.23144141,102650.0,102640.0,0.4042442]
[1762591041708,0.06386,102650.0,102640.0,0.50693808]
[1762591042015,0.01357,102650.0,102640.0,0.50693808]
[1762591042313,0.07451315,102660.0,102640.0,0.53375249]
[1762591042515,0.07451315,102660.0,102650.0,0.50590958]
[1762591042812,0.07451315,102660.0,102650.0,0.65550958]
[1762591044313,0.07551315,102660.0,102650.0,0.65550958]
[1762591046407,0.07451315,102660.0,102650.0,0.65642723]
[1762591052617,0.14462266,102660.0,102650.0,0.65642723]
[1762591052822,0.14462266,102660.0,102650.0,0.55895533]
[1762591053019,0.24208506,102660.0,102650.0,0.65642723]
[1762591054619,0.14462266,102660.0,102650.0,0.65642723]
[1762591057120,0.11929266,102660.0,102650.0,0.65642723]
[1762591057322,0.12094266,102660.0,102650.0,0.65642723]
[1762591057515,0.14903266,102660.0,102650.0,0.65642723]
[1762591057713,0.13837951,102660.0,102650.0,0.65642723]
[1762591057917,0.08367951,102660.0,102650.0,0.75903876]
[1762591058528,0.01357,102660.0,102650.0,0.75903876]
[1762591059236,0.04018,102660.0,102650.0,0.75903876]
[1762591060228,0.01357,102660.0,102650.0,0.75903876]
[1762591061437,0.08367951,102660.0,102650.0,0.75903876]
[1762591061833,0.11028951,102660.0,102650.0,0.75903876]
[1762591062537,0.04018,102660.0,102650.0,0.75903876]
[1762591063135,0.04018,102660.0,102650.0,1.17489496]
[1762591063331,0.04018,102660.0,102650.0,1.2017004]
[1762591063832,0.01357,102660.0,102650.0,1.2017004]
[1762591064139,0.01357,102660.0,102650.0,0.99647734]
[1762591064339,0.01357,102660.0,102650.0,1.2017004]
[1762591064727,0.01357,102660.0,102650.0,1.20169742]
[1762591065431,0.05223457,102670.0,102650.0,1.20169742]
[1762591065630,0.07877457,102670.0,102660.0,0.51094806]
[1762591066130,0.02743457,102670.0,102660.0,0.51094806]
[1762591066332,0.07877457,102670.0,102660.0,0.53774523]
[1762591067238,0.0145,102680.0,102660.0,0.76315919]
[1762591067433,0.06584,102680.0,102670.0,0.60838206]
[1762591067633,0.06584,102680.0,102670.0,0.50577053]
[1762591068033,0.1632835,102680.0,102670.0,0.40831753]
[1762591068229,0.06661,102670.0,102660.0,0.55807883]
[1762591068438,0.06661,102670.0,102660.0,0.68748035]
[1762591068641,0.06761,102670.0,102660.0,0.68748035]
[1762591068840,0.165063,102670.0,102660.0,0.59002185]
[1762591069033,0.07807002,102670.0,102660.0,0.68748425]
[1762591069238,0.17452302,102670.0,102660.0,0.66069426]
[1762591069641,0.07707002,102670.0,102660.0,0.66069426]
[1762591069840,0.07807002,102670.0,102660.0,0.66069426]
[1762591072641,0.17552292,102670.0,102660.0,0.66069426]
[1762591074046,0.07807002,102670.0,102660.0,0.66069426]
[1762591076445,0.17552292,102670.0,102660.0,0.66069426]
[1762591076933,0.07807002,102670.0,102660.0,0.66069426]
[1762591082047,0.01627,102670.0,102660.0,0.66069426]
[1762591082249,0.07575,102670.0,102660.0,0.66069426]
[1762591082548,0.07575,102670.0,102660.0,0.4823552]
[1762591082748,0.07575,102670.0,102660.0,0.68757826]
[1762591085441,0.07575,102670.0,102660.0,0.68757836]
[1762591088347,0.01627,102670.0,102660.0,0.68757836]
[1762591088545,0.001,102670.0,102660.0,0.79018989]
[1762591088847,0.001,102670.0,102660.0,0.81635007]
[1762591089043,0.001,102670.0,102660.0,1.05987007]
[1762591090350,0.0145,102680.0,102670.0,0.097453]
[1762591090550,0.04384,102680.0,102670.0,0.69036006]
[1762591090852,0.08537951,102700.0,102670.0,1.03645159]
[1762591091143,0.07475,102700.0,102690.0,0.51089126]
[1762591091343,0.1721746,102700.0,102690.0,0.02685]
[1762591091550,0.07832,102690.0,102680.0,0.20020133]
[1762591091850,0.07832,102690.0,102680.0,0.69046947]
[1762591092850,0.1757541,102690.0,102680.0,0.69046947]
[1762591093053,0.07832,102690.0,102680.0,0.69046947]
[1762591094152,0.07832,102690.0,102680.0,0.69346947]
[1762591095941,0.1757541,102690.0,102680.0,0.23522597]
[1762591096146,0.5365541,102690.0,102680.0,0.33266957]
[1762591096651,0.5365541,102690.0,102680.0,0.30581296]
[1762591097052,0.5365541,102690.0,102680.0,0.45541296]
[1762591097560,0.43912,102690.0,102680.0,0.45541296]
[1762591097858,0.43912,102690.0,102680.0,0.2501899]
[1762591098041,0.43912,102690.0,102680.0,0.45541296]
[1762591099753,0.5365541,102690.0,102680.0,0.45541296]
[1762591099953,0.63916563,102690.0,102680.0,0.25535783]
[1762591100945,0.63916563,102690.0,102680.0,0.1527463]
[1762591101447,0.63916563,102690.0,102680.0,0.25535783]
[1762591102753,0.63916563,102690.0,102680.0,0.1527463]
[1762591102954,0.72693571,102690.0,102680.0,0.1527463]
[1762591103158,0.175773,102670.0,102660.0,0.20007403]
[1762591103358,0.536573,102670.0,102660.0,0.20007403]
[1762591103555,0.60661012,102670.0,102660.0,0.20007403]
[1762591104259,0.60661012,102670.0,102660.0,0.20807403]
[1762591106453,0.60661022,102670.0,102660.0,0.1054625]
[1762591106659,0.60661022,102670.0,102660.0,0.20806496]
[1762591107059,0.60661022,102670.0,102660.0,0.1054625]
[1762591107262,0.60661022,102670.0,102660.0,0.20806496]
[1762591108756,0.60661022,102670.0,102660.0,0.008]
[1762591109763,0.60661022,102670.0,102660.0,0.1054626]
[1762591110463,0.60661022,102670.0,102660.0,0.004]
[1762591110663,0.60661022,102670.0,102660.0,0.1014626]
[1762591110862,0.60661022,102670.0,102660.0,0.0974626]
[1762591112065,0.1821726,102660.0,102650.0,0.71061256]
[1762591112251,0.08471,102660.0,102650.0,0.71061256]
[1762591112455,0.1821726,102660.0,102650.0,0.71061256]
[1762591112655,0.1821726,102660.0,102650.0,0.73709724]
[1762591113062,0.1821726,102660.0,102650.0,0.73809724]
[1762591113463,0.1821726,102660.0,102650.0,0.73909724]
[1762591113763,0.5429726,102660.0,102650.0,0.1517463]
[1762591114063,0.5429726,102660.0,102650.0,0.2492184]
[1762591114964,0.5429726,102660.0,102650.0,0.1517463]
[1762591115955,0.5429726,102660.0,102650.0,0.2492184]
[1762591116166,0.5429726,102660.0,102650.0,0.1517463]
[1762591116464,0.5429726,102660.0,102650.0,0.0021463]
[1762591126262,0.64557506,102660.0,102650.0,0.0021463]
[1762591127154,0.5429726,102660.0,102650.0,0.0021463]
[1762591128769,0.5429726,102660.0,102650.0,0.0996184]
[1762591130164,0.5429726,102660.0,102650.0,0.0021463]
[1762591131066,0.5429726,102660.0,102650.0,0.0996184]
[1762591133172,0.5429726,102660.0,102650.0,0.0021463]
[1762591133560,0.5429726,102660.0,102650.0,0.0996184]
[1762591139264,0.64557506,102660.0,102650.0,0.0021463]
[1762591139970,0.1760316,102640.0,102630.0,0.34968526]
[1762591140171,0.07855,102640.0,102630.0,0.37621885]
[1762591140465,0.07855,102640.0,102630.0,0.73701885]
[1762591140672,0.07855,102640.0,102630.0,0.76313997]
[1762591141074,0.07855,102640.0,102630.0,0.76713997]
[1762591141971,0.1760316,102640.0,102630.0,0.76713997]
[1762591142576,0.1760316,102640.0,102630.0,0.74401885]
[1762591143180,0.5368316,102640.0,102630.0,0.18313359]
[1762591143477,0.07855,102640.0,102630.0,0.71749356]
[1762591143778,0.1760316,102640.0,102630.0,0.35669356]
[1762591143976,0.1760316,102640.0,102630.0,0.71749356]
[1762591144173,0.18645109,102640.0,102630.0,0.71349356]
[1762591144391,0.08896949,102640.0,102630.0,0.71449356]
[1762591144878,0.18645109,102640.0,102630.0,0.71449356]
[1762591145380,0.18645109,102640.0,102630.0,0.35169356]
[1762591145872,0.18645109,102640.0,102630.0,0.35069356]
[1762591146072,0.18645109,102640.0,102630.0,0.34969356]
[1762591146977,0.18645109,102640.0,102630.0,0.20009356]
[1762591147177,0.08896949,102640.0,102630.0,0.20009356]
[1762591147377,0.08896949,102640.0,102630.0,0.30269602]
[1762591147577,0.15900661,102640.0,102630.0,0.20009356]
[1762591147880,0.15900661,102640.0,102630.0,0.66349602]
[1762591148181,0.02859949,102640.0,102630.0,0.68981532]
[1762591148379,0.05848949,102640.0,102630.0,0.68981532]
[1762591148868,0.04807,102640.0,102630.0,0.66349602]
[1762591149073,0.04807,102640.0,102630.0,0.68981342]
[1762591149684,0.04807,102640.0,102630.0,0.84041342]
[1762591149977,0.04807,102640.0,102630.0,0.84141342]
[1762591150679,0.01818,102640.0,102630.0,0.84141342]
[1762591150875,0.01818,102640.0,102630.0,1.08501342]
[1762591151074,0.0786963,102650.0,102630.0,0.84141342]
[1762591151275,0.0786963,102650.0,102640.0,0.56088406]
[1762591151480,0.0786963,102650.0,102640.0,0.58720146]
[1762591152681,0.0786963,102650.0,102640.0,0.61332258]
[1762591153972,0.0786963,102650.0,102640.0,0.61432258]
[1762591154173,0.0786963,102650.0,102640.0,0.58820146]
[1762591154676,0.0786963,102650.0,102640.0,0.58920146]
[1762591155677,0.0786963,102650.0,102640.0,0.73880146]
[1762591156182,0.0786963,102650.0,102640.0,0.58920146]
[1762591160286,0.1761684,102650.0,102640.0,0.58920146]
[1762591161679,0.1761684,102650.0,102640.0,0.73880146]
[1762591163184,0.0786963,102650.0,102640.0,0.73880146]
[1762591163686,0.1761684,102650.0,102640.0,0.73880146]
[1762591164887,0.0786963,102650.0,102640.0,0.73880146]
[1762591165090,0.0173863,102650.0,102640.0,0.98236146]
[1762591165278,0.0173863,102650.0,102640.0,1.00848258]
[1762591166088,0.0173863,102650.0,102640.0,0.73880146]
[1762591166287,0.0173863,102650.0,102640.0,0.84137678]
[1762591166591,0.0173863,102650.0,102640.0,1.18752567]
[1762591167684,0.0173863,102650.0,102640.0,0.94396567]
[1762591167881,0.0173863,102650.0,102640.0,1.18752567]
[1762591169085,0.0173863,102650.0,102640.0,1.21364679]
[1762591170087,0.0173863,102650.0,102640.0,0.97008679]
[1762591170387,0.0173863,102650.0,102640.0,1.21364679]
[1762591171191,0.0173863,102650.0,102640.0,0.97008679]
[1762591171392,0.0173863,102650.0,102640.0,1.21364679]
[1762591171889,0.0746563,102650.0,102640.0,0.8674979]
[1762591172089,0.1721284,102650.0,102640.0,0.48057678]
[1762591172394,0.1721284,102650.0,102640.0,0.84137678]
[1762591173494,0.0746563,102650.0,102640.0,0.84137678]
[1762591173890,0.1721284,102650.0,102640.0,0.8674979]
[1762591174092,0.0746563,102650.0,102640.0,0.8674979]
[1762591176200,0.1721284,102650.0,102640.0,0.8674979]
[1762591178600,0.0746563,102650.0,102640.0,0.8674979]
[1762591180203,0.1721284,102650.0,102640.0,0.8674979]
[1762591182598,0.1721284,102650.0,102640.0,0.90247597]
[1762591185508,0.0746563,102650.0,102640.0,0.90247597]
[1762591185693,0.0746563,102650.0,102640.0,0.87635485]
[1762591191608,0.1721284,102650.0,102640.0,0.87635485]
[1762591192607,0.0746563,102650.0,102640.0,0.86759363]
[1762591194001,0.0173863,102650.0,102640.0,0.97018252]
[1762591194311,0.0001463,102650.0,102640.0,0.97018252]
[1762591195205,0.0150363,102650.0,102640.0,0.97018252]
[1762591195812,0.0150363,102650.0,102640.0,0.94396567]
[1762591196001,0.0150363,102650.0,102640.0,0.97018252]
[1762591196202,0.0150363,102650.0,102640.0,0.94396567]
[1762591197011,0.0150363,102650.0,102640.0,0.97018252]
[1762591197405,0.0001463,102650.0,102640.0,0.97018252]
[1762591197810,0.0001463,102650.0,102640.0,1.21374252]
[1762591198108,0.0001463,102650.0,102640.0,0.97018252]
[1762591198508,0.0001463,102650.0,102640.0,1.21374252]
[1762591198708,0.0001463,102650.0,102640.0,0.97018252]
[1762591199512,0.0001463,102650.0,102640.0,1.21374252]
[1762591199808,0.0001463,102650.0,102640.0,1.24872059]
[1762591200703,0.0001463,102650.0,102640.0,1.00516059]
[1762591200904,0.0001463,102650.0,102640.0,1.24872059]
[1762591201404,0.0413463,102650.0,102640.0,1.24872059]
[1762591201604,0.1652984,102650.0,102640.0,0.86759363]
[1762591201814,0.1652984,102650.0,102640.0,0.84137678]
[1762591202014,0.0678263,102650.0,102640.0,0.84137678]
[1762591202317,0.0150363,102650.0,102640.0,0.94396567]
[1762591202511,0.0413463,102650.0,102640.0,0.96918252]
[1762591202712,0.0678263,102650.0,102640.0,0.9035717]
[1762591203716,0.0678263,102650.0,102640.0,0.9045717]
[1762591203916,0.0678263,102650.0,102640.0,0.87835485]
[1762591204118,0.0678263,102650.0,102640.0,1.00713321]
[1762591204328,0.0678263,102650.0,102640.0,0.98094374]
[1762591205513,0.0415163,102650.0,102640.0,0.98094374]
[1762591205716,0.0150363,102650.0,102640.0,1.03341084]
[1762591207925,0.0413463,102650.0,102640.0,1.03341084]
[1762591210423,0.0678263,102650.0,102640.0,1.03341084]
[1762591210619,0.0678263,102650.0,102640.0,0.72564417]
[1762591210820,0.0678263,102650.0,102640.0,1.03341084]
[1762591212134,0.0678263,102650.0,102640.0,0.98094374]
[1762591212827,0.0001463,102650.0,102640.0,0.98094374]
[1762591213027,0.0150363,102650.0,102640.0,0.98094374]
[1762591213228,0.0678263,102650.0,102640.0,0.98094374]
[1762591215235,0.0678263,102650.0,102640.0,1.03341084]
[1762591215536,0.0001463,102650.0,102640.0,1.03341084]
[1762591215725,0.07235,102660.0,102650.0,0.0974721]
[1762591215922,0.07235,102660.0,102650.0,0.71593979]
[1762591216835,0.07235,102660.0,102650.0,0.71693979]
[1762591217534,0.07235,102660.0,102650.0,0.71793979]
[1762591218730,0.07235,102660.0,102650.0,0.75291786]
[1762591220336,0.04587,102660.0,102650.0,0.90251786]
[1762591220733,0.07235,102660.0,102650.0,0.90251786]
[1762591222637,0.01956,102660.0,102650.0,1.03140134]
[1762591223134,0.0189863,102670.0,102660.0,0.0974626]
[1762591223135,0.0717763,102670.0,102660.0,0.0974626]
[1762591223340,0.0717763,102670.0,102660.0,0.9681155]
[1762591223935,0.0717763,102670.0,102660.0,0.86552661]
[1762591225538,0.0727763,102670.0,102660.0,0.86552661]
[1762591228344,0.0462963,102670.0,102660.0,0.86546559]
[1762591228649,0.0442063,102670.0,102660.0,0.86546559]
[1762591228947,0.0674863,102670.0,102660.0,0.86546559]
[1762591229334,0.0674863,102670.0,102660.0,0.90044366]
[1762591231151,0.0199863,102670.0,102660.0,0.87427483]
[1762591231444,0.0199863,102670.0,102660.0,0.92674193]
[1762591231638,0.0199863,102670.0,102660.0,0.89176386]
[1762591232037,0.0442063,102670.0,102660.0,0.89176386]
[1762591232243,0.0199863,102670.0,102660.0,0.89176386]
[1762591232648,0.0199863,102670.0,102660.0,0.92662403]
[1762591232845,0.0199863,102670.0,102660.0,0.89476386]
[1762591233044,0.0189863,102670.0,102660.0,0.89776386]
[1762591233245,0.0189863,102670.0,102660.0,0.9326164]
[1762591233952,0.0432063,102670.0,102660.0,1.1826164]
[1762591234157,0.0664863,102670.0,102660.0,1.1826164]
[1762591234554,0.0432063,102670.0,102660.0,1.1826164]
[1762591235751,0.0432063,102670.0,102660.0,0.97749964]
[1762591235950,0.0189863,102670.0,102660.0,1.0330164]
[1762591236250,0.0432063,102670.0,102660.0,1.0330164]
[1762591236450,0.2932063,102670.0,102660.0,1.0330164]
[1762591237851,0.2689863,102670.0,102660.0,1.0330164]
[1762591238055,0.2932063,102670.0,102660.0,1.0330164]
[1762591238656,0.2689863,102670.0,102660.0,1.0330164]
[1762591239462,0.2689863,102670.0,102660.0,1.2765364]
[1762591240065,0.2689863,102670.0,102660.0,1.0330164]
[1762591241155,0.2932063,102670.0,102660.0,0.82789964]
[1762591241351,0.2932063,102670.0,102660.0,1.0330164]
[1762591241560,0.2689863,102670.0,102660.0,1.0330164]
[1762591242766,0.2689863,102670.0,102660.0,0.97181974]
[1762591243266,0.2901663,102670.0,102660.0,0.97181974]
[1762591243764,0.3133663,102670.0,102660.0,0.97181974]
[1762591246661,0.3133663,102670.0,102660.0,1.12141974]
[1762591247363,0.3133663,102670.0,102660.0,1.15627228]
[1762591247568,0.2689863,102670.0,102660.0,1.15627228]
[1762591248067,0.2901663,102670.0,102660.0,1.15627228]
[1762591248764,0.3133663,102670.0,102660.0,1.15627228]
[1762591249669,0.2689863,102670.0,102660.0,1.1301493]
[1762591250265,0.3133663,102670.0,102660.0,1.1301493]
[1762591251865,0.3133663,102670.0,102660.0,1.15628949]
[1762591252869,0.3133663,102670.0,102660.0,1.1652529]
[1762591258175,0.2689863,102670.0,102660.0,1.09529676]
[1762591258573,0.2906163,102670.0,102660.0,1.09529676]
[1762591258771,0.3137063,102670.0,102660.0,1.09529676]
[1762591261473,0.3137063,102670.0,102660.0,0.94254867]
[1762591261675,0.3137063,102670.0,102660.0,1.08003051]
[1762591262176,0.3137063,102670.0,102660.0,1.18258889]
[1762591262477,0.3137063,102670.0,102660.0,1.13022022]
[1762591263280,0.3137063,102670.0,102660.0,1.15639826]
[1762591263575,0.3137063,102670.0,102660.0,0.9512815]
[1762591263780,0.3137063,102670.0,102660.0,1.05383988]
[1762591264381,0.3137063,102670.0,102660.0,1.15339826]
[1762591264578,0.3137063,102670.0,102660.0,1.15239826]
[1762591264775,0.3137063,102670.0,102660.0,1.15439826]
[1762591265570,0.3137063,102670.0,102660.0,1.18058889]
[1762591266875,0.3137063,102670.0,102660.0,1.03098889]
[1762591268388,0.3137063,102670.0,102660.0,0.99606543]
[1762591268981,0.0629,102680.0,102670.0,0.0974532]
[1762591269182,0.0629,102680.0,102670.0,0.6394363]
[1762591270083,0.0629,102680.0,102670.0,0.6404363]
[1762591271087,0.0629,102680.0,102670.0,0.6414363]
[1762591271280,0.0629,102680.0,102670.0,0.67630751]
[1762591271480,0.0629,102680.0,102670.0,0.57374913]
[1762591271676,0.0629,102680.0,102670.0,0.67630751]
[1762591272688,0.0629,102680.0,102670.0,0.62400019]
[1762591274391,0.0629,102680.0,102670.0,0.65015619]
[1762591276193,0.0629,102680.0,102670.0,0.62400019]
[1762591276694,0.0629,102680.0,102670.0,0.58912898]
[1762591276896,0.0629,102680.0,102670.0,0.62399872]
[1762591277399,0.0629,102680.0,102670.0,0.67630604]
[1762591280401,0.0629,102680.0,102670.0,0.6414363]
[1762591281897,0.01818,102680.0,102670.0,0.89359468]
[1762591282292,0.03981,102680.0,102670.0,0.89359468]
[1762591282504,0.0629,102680.0,102670.0,0.89359468]
[1762591282691,0.0629,102680.0,102670.0,0.86743442]
[1762591283300,0.05961,102690.0,102680.0,0.0974437]
[1762591283604,0.05961,102690.0,102680.0,0.68967786]
[1762591284797,0.06061,102690.0,102680.0,0.68967786]
[1762591286402,0.06061,102690.0,102680.0,0.58711948]
[1762591287611,0.06061,102690.0,102680.0,0.73671948]
[1762591287799,0.06061,102690.0,102680.0,0.83927786]
[1762591288401,0.06061,102690.0,102680.0,0.94170172]
[1762591292609,0.06061,102690.0,102680.0,1.00271153]
[1762591294911,0.0573,102700.0,102690.0,0.0974344]
[1762591295105,0.0573,102700.0,102690.0,0.83917888]
[1762591295305,0.0573,102700.0,102690.0,0.86532594]
[1762591296315,0.05541,102710.0,102700.0,0.0974249]
[1762591296507,0.05541,102710.0,102700.0,0.79208292]
[1762591296705,0.03436,102710.0,102700.0,0.96782998]
[1762591296904,0.05541,102710.0,102700.0,1.00269273]
[1762591297109,0.05541,102710.0,102700.0,0.90017919]
[1762591297305,0.05541,102720.0,102710.0,0.0974155]
[1762591297509,0.05541,102720.0,102710.0,0.68955998]
[1762591298505,0.05541,102720.0,102710.0,0.69155998]
[1762591299113,0.05541,102720.0,102710.0,0.4885329]
[1762591299313,0.05541,102720.0,102710.0,0.69355998]
[1762591301105,0.05541,102720.0,102710.0,0.4885329]
[1762591301306,0.05541,102720.0,102710.0,0.69355998]
[1762591302112,0.05541,102720.0,102710.0,0.4885329]
[1762591302415,0.05541,102720.0,102710.0,0.84315998]
[1762591302614,0.05541,102720.0,102710.0,0.74574448]
[1762591302819,0.41621,102720.0,102710.0,0.22969795]
[1762591303113,0.513616,102720.0,102710.0,0.13228245]
[1762591303515,0.513616,102720.0,102710.0,0.22969795]
[1762591303812,0.513616,102720.0,102710.0,0.22769795]
[1762591304015,0.513616,102720.0,102710.0,0.22869795]
[1762591304516,0.41621,102720.0,102710.0,0.22769795]
[1762591306020,0.05541,102720.0,102710.0,0.69101149]
[1762591306317,0.05541,102720.0,102710.0,0.71715855]
[1762591308213,0.05541,102720.0,102710.0,0.86675855]
[1762591309217,0.05541,102720.0,102710.0,0.84061149]
[1762591312721,0.05541,102720.0,102710.0,0.86675855]
[1762591319326,0.05541,102720.0,102710.0,0.96927209]
[1762591319828,0.05541,102720.0,102710.0,0.86675855]
[1762591321225,0.05541,102720.0,102710.0,0.66682951]
[1762591321422,0.05541,102720.0,102710.0,0.84061129]
[1762591322528,0.05541,102720.0,102710.0,0.63558421]
[1762591323828,0.05541,102720.0,102710.0,0.48598421]
[1762591325634,0.1528158,102720.0,102710.0,0.48598421]
[1762591325930,0.05541,102720.0,102710.0,0.48598421]
[1762591326121,0.05541,102720.0,102710.0,0.58849775]
[1762591326318,0.1528158,102720.0,102710.0,0.58849775]
[1762591327534,0.05541,102720.0,102710.0,0.58849775]
[1762591327730,0.05541,102720.0,102710.0,0.69101129]
[1762591330836,0.05541,102720.0,102710.0,0.71715835]
[1762591331945,0.03436,102720.0,102710.0,0.71715835]
[1762591332142,0.06044,102720.0,102710.0,0.71715835]
[1762591332636,0.06044,102720.0,102710.0,0.66524238]
[1762591332834,0.013,102720.0,102710.0,0.69097343]
[1762591333436,0.03826,102720.0,102710.0,0.69097343]
[1762591334643,0.03826,102720.0,102710.0,0.84057343]
[1762591335539,0.06434,102720.0,102710.0,0.84057343]
[1762591336738,0.013,102720.0,102710.0,0.84057343]
[1762591337041,0.03826,102720.0,102710.0,0.86672134]
[1762591337737,0.06434,102720.0,102710.0,0.86672134]
[1762591339240,0.06434,102720.0,102710.0,1.22752134]
[1762591341041,0.08383712,102750.0,102730.0,0.0973963]
[1762591341336,0.05134,102740.0,102730.0,0.90461726]
[1762591341538,0.06684,102740.0,102730.0,1.08349643]
[1762591341735,0.07690162,102740.0,102730.0,0.68909643]
[1762591342242,0.07690162,102740.0,102730.0,0.69109643]
[1762591342843,0.06684,102740.0,102730.0,0.71724434]
[1762591343541,0.06684,102740.0,102730.0,0.71924434]
[1762591346444,0.06684,102740.0,102730.0,0.86884434]
[1762591348551,0.06684,102740.0,102730.0,0.76623725]
[1762591350450,0.06684,102740.0,102730.0,0.66884525]
[1762591350742,0.06684,102740.0,102730.0,0.74009364]
[1762591350947,0.06684,102740.0,102730.0,0.76624155]
[1762591352649,0.06684,102740.0,102730.0,0.74009364]
[1762591352849,0.06684,102740.0,102730.0,0.76624155]
[1762591354250,0.06684,102740.0,102730.0,0.74009364]
[1762591356455,0.06684,102740.0,102730.0,0.40538618]
[1762591356951,0.06684,102740.0,102730.0,0.76618618]
[1762591358252,0.06684,102740.0,102730.0,0.74009364]
[1762591358955,0.1642268,102740.0,102730.0,0.66376995]
[1762591359155,0.1642268,102740.0,102730.0,0.40538994]
[1762591359454,0.1642268,102740.0,102730.0,0.37929364]
[1762591359955,0.06684,102740.0,102730.0,0.37929364]
[1762591360253,0.06684,102740.0,102730.0,0.40538994]
[1762591360653,0.06684,102740.0,102730.0,0.76618994]
[1762591361346,0.06684,102740.0,102730.0,0.80105269]
[1762591362553,0.06684,102740.0,102730.0,0.77495639]
[1762591363746,0.06684,102740.0,102730.0,0.6725364]
[1762591363946,0.06684,102740.0,102730.0,0.77495639]
[1762591371458,0.1642268,102740.0,102730.0,0.77495639]
[1762591371760,0.1642268,102740.0,102730.0,0.80111812]
[1762591372359,0.06684,102740.0,102730.0,0.80111812]
[1762591372560,0.1642268,102740.0,102730.0,0.80111812]
[1762591374755,0.5250268,102740.0,102730.0,0.31676009]
[1762591374956,0.5250268,102740.0,102730.0,0.17947735]
[1762591375363,0.5250268,102740.0,102730.0,0.27687365]
[1762591375863,0.5250268,102740.0,102730.0,0.37929364]
[1762591376667,0.5250268,102740.0,102730.0,0.27687365]
[1762591376857,0.5250268,102740.0,102730.0,0.37929364]
[1762591377162,0.5260268,102740.0,102730.0,0.37529364]
[1762591377358,0.5260268,102740.0,102730.0,0.17547735]
[1762591377869,0.5260268,102740.0,102730.0,0.27287365]
[1762591378267,0.5260268,102740.0,102730.0,0.17547735]
[1762591378666,0.5260268,102740.0,102730.0,0.27287365]
[1762591379062,0.5260268,102740.0,102730.0,0.17547735]
[1762591379264,0.5260268,102740.0,102730.0,0.02587735]
[1762591380261,0.5260268,102740.0,102730.0,0.12327365]
[1762591380463,0.5260268,102740.0,102730.0,0.02587735]
[1762591382663,0.5260268,102740.0,102730.0,0.0001463]
[1762591385271,0.5260268,102740.0,102730.0,0.22587125]
[1762591385768,0.1710158,102720.0,102710.0,0.1496]
[1762591385966,0.1710252,102710.0,102700.0,0.71024069]
[1762591386167,0.1710252,102710.0,102700.0,0.37535755]
[1762591386369,0.1710347,102700.0,102690.0,0.10241999]
[1762591386675,0.5318347,102700.0,102690.0,0.12833625]
[1762591386866,0.5318347,102700.0,102690.0,0.10241999]
[1762591387465,0.5318347,102700.0,102690.0,0.19985119]
[1762591387871,0.5318347,102700.0,102690.0,0.20385119]
[1762591388266,0.5318347,102700.0,102690.0,0.10641999]
[1762591389173,0.43441,102700.0,102690.0,0.32798225]
[1762591389475,0.43441,102700.0,102690.0,0.22656226]
[1762591389677,0.43441,102700.0,102690.0,0.32898225]